{"text_format":"3","workbook":"xlsx","n_sheets":4,"sheets":["recepties en babyborrels","matrixen","Algemene verkoopsvoorwaarden","Reservatievoorstel"],"not_rendered":{"macros":1,"defined_names":3},"read":"whole","date_system":"1900"}

{"sheet":"recepties en babyborrels","index":0,"n_rows":173,"n_cols":27,"rows_kept":173,"merged":[[14,5,14,6],[22,5,22,8],[23,5,23,8],[24,5,24,8],[25,5,25,8],[26,5,26,8],[30,1,31,1],[30,5,40,5],[48,7,48,10],[63,10,63,21]]}
[null,"Deze info is van: Feestzaal Katelijnenhof, Heirweg 172, 8800 Roeselare. Contacteer de zaakvoerder: 0475/618058 - info@katelijnenhof.be - web: www.katelijnenhof.be met foto's en volledige prijslijst.",{"$nulls":9},{"$f":"TODAY()","v":"2019-10-31"}]
[]
[null,{"$f":"\"Rekenmodule recepties en babyborrels. De prijzen in deze module gelden voor alle personen die een receptie nemen die niet gevolgd wordt door een maaltijd. Geldig  tot \" & DAY(matrixen!B1) & \" - \" & MONTH(matrixen!B1) & \" - \" & YEAR(matrixen!B1)","v":"Rekenmodule recepties en babyborrels. De prijzen in deze module gelden voor alle personen die een receptie nemen die niet gevolgd wordt door een maaltijd. Geldig  tot 31 - 12 - 2019"}]
[]
[{"$nulls":5},"kinderen",null,"kinderen",null,"kinderen"]
[{"$nulls":3},{"$f":"IF(TODAY()>AA11,\"Deze module is niet meer geldig.\",\"\")","v":""},null," 0 t.e.m. 2 j. 11 maand",null,"3 j. t.e.m. 5 j. 11 maand",null,"6 j, t.e.m. 11 jr. 11 maand"]
[null,"Totaal per volwassene:",null,{"$f":"IF(TODAY()>AA11,1/0,SUM(D12:D59))","v":{"v":0,"d":"0.00"}},null,"0,00",null,{"$f":"ROUND(D7/3,2)","v":{"v":0,"d":"0.00"}},null,{"$f":"ROUND(D7/2,2)","v":{"v":0,"d":"0.00"}}]
[]
[null,"MAAK UW KEUZE in de gele vakken:",null,{"$f":"IF(D13>0,\"U koos nog geen receptieformule\",0)","v":0}]
[null,"(klik op de gele balk, vervolgens op het pijltje rechts en scroll ev. naar beneden)",null,"prijs pp",null,"Beknopte info",{"$nulls":3},"Gedetailleerde info"]
[null,"Kies hier eerst uw soort receptie. ",{"$nulls":24},{"$f":"matrixen!B1","v":"2019-12-31"}]
[null,"Maak in dit vak uw keuze",null,{"$f":"VLOOKUP(B12,matrixen!B13:I23,8,FALSE)","v":0},null,{"$f":"IFERROR(HLOOKUP($B$12,matrixen!$K$14:$V$22,2,FALSE),\"<= U moet eerst een receptieformule kiezen\")","v":0},{"$nulls":3},{"$f":"HLOOKUP($B$12,matrixen!$W$14:$AH$465,2,FALSE)","v":0},{"$nulls":16},{"$f":"matrixen!B13","v":"Maak in dit vak uw keuze"}]
[null,"Maak in dit vak uw keuze",{"$nulls":3},{"$f":"HLOOKUP($B$12,matrixen!$K$14:$V$22,3,FALSE)","v":0},{"$nulls":3},{"$f":"HLOOKUP($B$12,matrixen!$W$14:$AH$465,3,FALSE)","v":0},{"$nulls":16},{"$f":"matrixen!B14","v":"Babyborrel"}]
[null,{"$f":"IF(F12=\"U moet een receptieformule kiezen\", \"Kies hierboven een receptieformule!!\",\"\")","v":""},null,{"$f":"IF(OR(B12=\"\",D12=0),0,IF(AND(OR(B12=matrixen!B14,B12 = matrixen!B15),YEAR(F48)=2018),-2,0))","v":0},null,{"$f":"HLOOKUP($B$12,matrixen!$K$14:$V$22,4,FALSE)","v":0},{"$nulls":3},{"$f":"HLOOKUP($B$12,matrixen!$W$14:$AH$465,4,FALSE)","v":0},{"$nulls":16},{"$f":"matrixen!B15","v":"Partyformule"}]
[null,"Indien een genodigde een extra aperitief bestelt of een aperitief wenst die niet in de prijs begrepen is dan:",{"$nulls":3},{"$f":"HLOOKUP($B$12,matrixen!$K$14:$V$22,5,FALSE)","v":0},{"$nulls":3},{"$f":"HLOOKUP($B$12,matrixen!$W$14:$AH$465,5,FALSE)","v":0},{"$nulls":16},{"$f":"matrixen!B16","v":"Receptie E"}]
[null,"De gast die een extra aperitief bestelt betaalt deze zelf",{"$nulls":3},{"$f":"HLOOKUP($B$12,matrixen!$K$14:$V$22,6,FALSE)","v":0},{"$nulls":3},{"$f":"HLOOKUP($B$12,matrixen!$W$14:$AH$465,6,FALSE)","v":0},{"$nulls":16},{"$f":"matrixen!B17","v":"Receptie A"}]
[null,"De gast die een extra aperitief bestelt betaalt deze zelf",{"$nulls":3},{"$f":"HLOOKUP($B$12,matrixen!$K$14:$V$22,7,FALSE)","v":0},{"$nulls":3},{"$f":"HLOOKUP($B$12,matrixen!$W$14:$AH$465,7,FALSE)","v":0},{"$nulls":16},{"$f":"matrixen!B18","v":"Uitgebreide receptie, alle doelen"}]
[null,"Alle extra aperitief komt op de algemene rekening.",{"$nulls":3},{"$f":"HLOOKUP($B$12,matrixen!$K$14:$V$22,8,FALSE)","v":0},{"$nulls":3},{"$f":"HLOOKUP($B$12,matrixen!$W$14:$AH$465,8,FALSE)","v":0},{"$nulls":16},{"$f":"matrixen!B19","v":"Free-flow 1 maaltijd-receptieformule met buffetjes en warme hapjes"}]
[null,"Mogelijke supplementen drank",{"$nulls":3},{"$f":"HLOOKUP($B$12,matrixen!$K$14:$V$22,9,FALSE)","v":0},{"$nulls":3},{"$f":"HLOOKUP($B$12,matrixen!$W$14:$AH$465,9,FALSE)","v":0},{"$nulls":16},{"$f":"matrixen!B20","v":"Free-flow 1 maaltijd-receptieformule met buffetjes en warme hapjes en extra gerookte zalm en krabsalade"}]
[{"$nulls":9},{"$f":"HLOOKUP($B$12,matrixen!$W$14:$AH$465,10,FALSE)","v":0},{"$nulls":16},{"$f":"matrixen!B21","v":0}]
[null,"Schuimwijn van het huis (reeds inbegrepen)",null,{"$f":"VLOOKUP(B21,matrixen!B25:I28,8,FALSE)","v":0},null,{"$f":"IF(B12=matrixen!L14,\"Rec G: kies hier uw andere hapjes\",\"\")","v":""},{"$nulls":3},{"$f":"HLOOKUP($B$12,matrixen!$W$14:$AH$465,11,FALSE)","v":0},{"$nulls":16},{"$f":"matrixen!B22","v":"Free-flow 2 maaltijd-receptieformule met buffetjes en warme hapjes"}]
[null,"Schuimwijn van het huis (reeds inbegrepen)",{"$nulls":7},{"$f":"HLOOKUP($B$12,matrixen!$W$14:$AH$465,12,FALSE)","v":0},{"$nulls":16},{"$f":"matrixen!B23","v":"Free-flow 2 maaltijd-receptieformule met buffetjes en warme hapjes en extra gerookte zalm en krabsalade"}]
[null,{"$f":"IFERROR(IF(B12=matrixen!N14,\"U selecteerde receptie E. Kies hieronder 4 hapjes.\",IF(B12=matrixen!L14,\"U koos receptie G, ideaal voor een babyborrel. Kies eerst hieronder 4 hapjes en de rest in deze gele vakjes rechts =>\",IF(B12=matrixen!R14,\"U koos receptie A. U kunt hapjes toevoegen als u dat wenst.\",IF(SEARCH(\"Free\",B12),\"In de free flow recepties mag u 5 hapjes kiezen\",\"\")))),\"Kies eerst hierboven in het gele vak, net onder het oranje vak een formule!\")","v":"Kies eerst hierboven in het gele vak, net onder het oranje vak een formule!"},{"$nulls":7},{"$f":"HLOOKUP($B$12,matrixen!$W$14:$AH$465,13,FALSE)","v":0},{"$nulls":16},{"$f":"matrixen!B24","v":0}]
[null,{"$f":"IF(SUM(D24:D26)>0,\"Toeslag voor extra hapjes hapjes:\",0)","v":0},null,{"$f":"IF(AND(COUNTA($B$25:$B$28)+COUNTA($F$23:$I$27)>4,$B$12=matrixen!N14),((COUNTA($B$25:$B$28)+COUNTA($F$23:$I$27))-4)*matrixen!$I$49,0)","v":0},{"$nulls":5},{"$f":"HLOOKUP($B$12,matrixen!$W$14:$AH$465,14,FALSE)","v":0},{"$nulls":16},{"$f":"matrixen!B25","v":"Schuimwijn van het huis (reeds inbegrepen)"}]
[{"$nulls":3},{"$f":"IF(AND(COUNTA($B$25:$B$28)+COUNTA($F$23:$I$27)>0,$B$12=matrixen!R14),((COUNTA($B$25:$B$28)+COUNTA($F$23:$I$27)))*matrixen!$I$49,0)","v":0},{"$nulls":5},{"$f":"HLOOKUP($B$12,matrixen!$W$14:$AH$465,15,FALSE)","v":0},{"$nulls":16},{"$f":"matrixen!B26","v":"Cava"}]
[{"$nulls":3},{"$f":"IF(AND(COUNTA($B$25:$B$28)+COUNTA($F$23:$I$27)>5,OR($B$12=matrixen!S14,B12=matrixen!T14,B12=matrixen!U14,B12=matrixen!V14)),((COUNTA($B$25:$B$28)+COUNTA($F$23:$I$27))-5)*matrixen!$I$49,0)","v":0},{"$nulls":5},{"$f":"HLOOKUP($B$12,matrixen!$W$14:$AH$465,16,FALSE)","v":0},{"$nulls":16},{"$f":"matrixen!B27","v":"Champagne"}]
[{"$nulls":9},{"$f":"HLOOKUP($B$12,matrixen!$W$14:$AH$465,17,FALSE)","v":0},{"$nulls":16},{"$f":"matrixen!B28","v":0}]
[{"$nulls":9},{"$f":"HLOOKUP($B$12,matrixen!$W$14:$AH$465,18,FALSE)","v":0}]
[{"$nulls":3},{"$f":"IF(F31<>\"\",1/0,0)","v":0},{"$nulls":5},{"$f":"HLOOKUP($B$12,matrixen!$W$14:$AH$465,19,FALSE)","v":0},{"$nulls":16},{"$f":"matrixen!D58","v":"Maak hier uw keuze"}]
[{"$nulls":9},{"$f":"HLOOKUP($B$12,matrixen!$W$14:$AH$465,20,FALSE)","v":0},{"$nulls":16},{"$f":"matrixen!D59","v":"parmaham"}]
[null,{"$f":"IF(B12=matrixen!B15,\"Selecteer hieronder: Forfait voor drank naar believen. Dit is reeds inbegrepen en wijzigt de prijs niet meer.\",\"Betaling drank na de receptie:\")","v":"Betaling drank na de receptie:"},{"$nulls":3},{"$f":" IF(B39=\"ja\",IF(COUNTA(F23:F27)+COUNTA(B25:B28)>7,\"U selecteerde teveel hapjes en kunt de desserthapjes niet vervangen! Selecteer in het gele vak hierboven maximaal 7 hapjes! Of kies de optie 'extra warm gerecht kiezen'\",\"\"),\"\")","v":""},{"$nulls":3},{"$f":"HLOOKUP($B$12,matrixen!$W$14:$AH$465,21,FALSE)","v":0},{"$nulls":16},{"$f":"matrixen!D60","v":"grijze garnalen"}]
[{"$nulls":9},{"$f":"HLOOKUP($B$12,matrixen!$W$14:$AH$465,22,FALSE)","v":0},{"$nulls":16},{"$f":"matrixen!D61","v":"gerookte zalm"}]
[null,"Alle drank na de receptie komt op één rekening en wordt door de organisator van het feest betaald",null,{"$f":"IF(B12=matrixen!B15,matrixen!P93,VLOOKUP(B33,matrixen!A91:P93,15,FALSE))","v":0},{"$f":"VLOOKUP(B33,matrixen!A91:P93,16,FALSE)","v":"één rekening"},{"$nulls":4},{"$f":"HLOOKUP($B$12,matrixen!$W$14:$AH$465,23,FALSE)","v":0},{"$nulls":16},{"$f":"matrixen!D62","v":"zalmsalade"}]
[null,"Alle drank na de receptie komt op één rekening en wordt door de organisator van het feest betaald",{"$nulls":7},{"$f":"HLOOKUP($B$12,matrixen!$W$14:$AH$465,24,FALSE)","v":0},{"$nulls":16},{"$f":"matrixen!D63","v":"gerookte ham"}]
[null,"U kunt ook de receptie wat langer laten duren. Dan serveren wij verder drank. Aantal uren extra (max2):",{"$nulls":7},{"$f":"HLOOKUP($B$12,matrixen!$W$14:$AH$465,25,FALSE)","v":0},{"$nulls":16},{"$f":"matrixen!D64","v":"vissla"}]
[null,0,null,{"$f":"B36*matrixen!I53","v":0},{"$nulls":5},{"$f":"HLOOKUP($B$12,matrixen!$W$14:$AH$465,26,FALSE)","v":0},{"$nulls":16},{"$f":"matrixen!D65","v":"kaas"}]
[null,0,{"$nulls":7},{"$f":"HLOOKUP($B$12,matrixen!$W$14:$AH$465,27,FALSE)","v":0},{"$nulls":16},{"$f":"matrixen!D66","v":"gekookte ham"}]
[null,{"$f":"IF(B12=matrixen!L14,\"Wilt u 2 hapjes vervangen door één of meerdere warme gerechten?\",\"\")","v":""},{"$nulls":7},{"$f":"HLOOKUP($B$12,matrixen!$W$14:$AH$465,28,FALSE)","v":0},{"$nulls":16},{"$f":"matrixen!D67","v":"américain préparé"}]
[null,"nee",{"$nulls":7},{"$f":"HLOOKUP($B$12,matrixen!$W$14:$AH$465,29,FALSE)","v":0},{"$nulls":16},{"$f":"matrixen!D68","v":"krabsla"}]
[null,"U kunt hier een extra warm gerecht kiezen.",{"$nulls":7},{"$f":"HLOOKUP($B$12,matrixen!$W$14:$AH$465,30,FALSE)","v":0},{"$nulls":16},{"$f":"matrixen!D69","v":"kipsla"}]
[{"$nulls":3},{"$f":"IF(F31=\"\",IF(B39=\"ja\",IF((D43+D45+E47+D47)>0,matrixen!N72*(-1),0),0),0)","v":0},{"$nulls":3},{"$f":"HLOOKUP($B$12,matrixen!$W$14:$AH$465,31,FALSE)","v":0}]
[null,"U kunt hier een tweede extra warm gerecht kiezen.",{"$nulls":3},"Vegetariërs: ","nee","Speciale dieten: ","nee","Halal bereidingen: ","nee",{"$nulls":15},{"$f":"matrixen!A91","v":"Alle drank na de receptie komt op één rekening en wordt door de organisator van het feest betaald"}]
[{"$nulls":3},{"$f":"IFERROR(VLOOKUP(B41,matrixen!$L$75:$N$84,3,FALSE),0)","v":0},{"$nulls":22},{"$f":"matrixen!A92","v":"Elke gast die na de receptie een drankje bestelt rekent direct af aan de bar"}]
[null,"U kunt hier een derde extra warm gerecht kiezen.",{"$nulls":3},"Feest met discobar: ","nee","Allergenen: ","nee",{"$f":"IF($I$44=\"ja\",matrixen!A97,\"\")","v":""},{"$nulls":16},{"$f":"matrixen!A93","v":"Forfait voor drank naar believen (alle bieren en frisdranken van de drankkaart in de zaal) na een receptie pp: "}]
[{"$nulls":3},{"$f":"IFERROR(VLOOKUP(B43,matrixen!$L$75:$N$84,3,FALSE),0)","v":0},null,{"$f":"IF(G44=\"ja\",matrixen!A101,\"\")","v":""},{"$nulls":3},{"$f":"IF($I$44=\"ja\",matrixen!A98,\"\")","v":""}]
[null,{"$f":"\"Wenst u exclusiviteit voor het volledige domein mits meerprijs van € \"&matrixen!F222 & \" ?\"","v":"Wenst u exclusiviteit voor het volledige domein mits meerprijs van € 750 ?"},{"$nulls":24},{"$f":"matrixen!A119","v":"ja"}]
[null,"nee",null,{"$f":"IFERROR(VLOOKUP(B45,matrixen!$L$75:$N$84,3,FALSE),0)","v":0},{"$f":"IF(B47=\"ja\",matrixen!F222,0)","v":0},{"$nulls":21},{"$f":"matrixen!A120","v":"nee"}]
[{"$nulls":4},"Eventuele datum van het feest:",null,null,"Overzicht van uw selectie:",{"$nulls":3},{"$f":"IF(B36>1,B36 & \" extra uren drank\",IF(B36=1,\"1 extra uur drank\",\"\"))","v":""},{"$nulls":14},{"$f":"IF($B$12=matrixen!$B$14,\"ja\",\"\")","v":""}]
[{"$nulls":5},"Het exacte aantal personen en de tafelschikking dient ons meegedeeld te worden de vrijdag van het weekend voordien.",null,{"$f":"IF(L49>0,B12,0)","v":0},{"$nulls":3},{"$f":"D12","v":{"v":0,"d":"0.00"}},{"$nulls":14},{"$f":"IF($B$12=matrixen!$B$14,\"nee\",\"\")","v":""}]
[{"$nulls":4},"geraamd aantal volwassenen:",null,null,{"$f":"IF(L50>0,B21,\"\")","v":""},{"$f":"IF(L50>0,\"geldt alleen bij recepties!!!\",\"\")","v":""},null,null,{"$f":"D21","v":{"v":0,"d":"0.00"}}]
[{"$nulls":4},"geraamd aantal kinderen 6 j, t.e.m. 11 jr. 11 maand:"]
[{"$nulls":4},"geraamd aantal kinderen 3 j. t.e.m. 5 j. 11 maand:",{"$nulls":21},{"$f":"matrixen!A381","v":"Betaling op de dag zelf (cash of bancontact), u bekomt 2% korting op het totaal"}]
[{"$nulls":4},"geraamd aantal kinderen  0 t.e.m. 2 j. 11 maand:",{"$nulls":21},{"$f":"matrixen!A382","v":"Storting op BE 48 4631 1391 2127 min. 7 dagen voor het feest, 2% korting"}]
[{"$nulls":26},{"$f":"matrixen!A383","v":"Betaling na het feest. Gelieve 40 % voorschot te storten op BE48 4631 1391 2127. Geen korting."}]
[{"$nulls":4},"uur van aankomst:"]
[{"$nulls":4},"aan tafel om:",{"$nulls":21},{"$f":"matrixen!L75","v":0}]
[{"$nulls":26},{"$f":"matrixen!L76","v":"Een frikandel"}]
[{"$nulls":4},"Uw naam:",null,null,"Keuze drank na de receptie:",{"$nulls":3},{"$f":"E33","v":"één rekening"},{"$nulls":14},{"$f":"matrixen!L77","v":"Een zakje friet"}]
[{"$nulls":4},"Adres:",{"$nulls":21},{"$f":"matrixen!L78","v":"Een BBQ worst"}]
[{"$nulls":4},"Stad:",{"$nulls":21},{"$f":"matrixen!L79","v":"Een ovenkoek met reuze Angus burger"}]
[{"$nulls":4},"Tel nr:",{"$nulls":21},{"$f":"matrixen!L80","v":"Duo van Groenlandse heilbot en scampi's met een snuifje saffraan"}]
[{"$nulls":4},"email:",null,null,"Gaat u akkoord met de algemene verkoopsvoorwaarden?",null,null,"ja",{"$nulls":15},{"$f":"matrixen!L81","v":"Bladerdeeggebakje gevuld met kip"}]
[{"$nulls":4},"geraamde totalen uit andere rekenbladen:",{"$nulls":21},{"$f":"matrixen!L82","v":"Victoriabaarsfilet in preiroomsaus"}]
[null,null,"(vb: kindermenus)",{"$nulls":6},"Wijze van betaling:","Storting op BE 48 4631 1391 2127 min. 7 dagen voor het feest, 2% korting",{"$nulls":15},{"$f":"matrixen!L83","v":"Witte zalmfilet in gekruide roomsaus of in kreeftenroomsaus"}]
[{"$nulls":4},"reden feest:",{"$nulls":21},{"$f":"matrixen!L84","v":"Gepocheerde verse roze zalm met bieslooksaus"}]
[{"$nulls":4},"Opmerking:",{"$nulls":4},"Wenst u een factuur? ","nee"]
[{"$nulls":10},{"$f":"IF(K66=\"ja\",\"Gelieve uw facturatiegegevens bij opmerkingen in te vullen.\",\"\")","v":""}]
[{"$nulls":4},"Geschat factuurtotaal:",{"$f":"Reservatievoorstel!I14","v":{"v":0,"d":"€ 0.00"}}]
[{"$nulls":5},"(Gebaseerd op de door u ingebrachte gegevens)",{"$nulls":20},{"$f":"matrixen!X50","v":"KOUD: crunchy sushi"}]
[{"$nulls":26},{"$f":"matrixen!X51","v":"luzerne met gerookte zalm, eitjes van vliegende vis in wasabi"}]
[{"$nulls":4},"korting bij contante betaling:",{"$f":"F68*0.02","v":{"v":0,"d":"€ 0.00"}},{"$nulls":20},{"$f":"matrixen!X52","v":"preischeuten met tijgergarnalen en mini tomaat"}]
[{"$nulls":4},"saldo:",{"$f":"F68-F71","v":{"v":0,"d":"€ 0.00"}},{"$nulls":20},{"$f":"matrixen!X53","v":"aperoglaasje parmaham met meloenbolletjes"}]
[{"$nulls":26},{"$f":"matrixen!X54","v":"ganache van foie gras met frambozenconfituur en amandelbrood"}]
[{"$nulls":26},{"$f":"matrixen!X55","v":"aperoglaasje parmaham met espuma van mango"}]
[{"$nulls":26},{"$f":"matrixen!X56","v":"verse oester"}]
[{"$nulls":11},"Om uw selecties te bewaren, gelieve ze op te slaan op uw harde schijf. (opslaan als)",{"$nulls":14},{"$f":"matrixen!X57","v":"Taboulé met gerookte forel"}]
[{"$nulls":11},"Om een aanvraag naar ons te versturen stuur een mail naar info@katelijnenhof met in bijlage dit bestand vanaf uw harde schijf.",{"$nulls":14},{"$f":"matrixen!X58","v":"Haringhapje met curry"}]
[{"$nulls":11},"Om uw selecties af te drukken druk pagina 1 van tabblad  \"reservatievoorstel\" af.",{"$nulls":14},{"$f":"matrixen!X59","v":"Mini bagel met zalm en kruidenkaas"}]
[{"$nulls":26},{"$f":"matrixen!X60","v":"BORD: op tafel met rauwe groenten en cocktailsaus (wortel, bloemkool, radijs)"}]
[{"$nulls":26},{"$f":"matrixen!X61","v":"Bord met olijven, kaasjes en salamietjes"}]
[{"$nulls":26},{"$f":"matrixen!X62","v":"Bord met 3 tapenades (tonijn / pesto spread rosso /zoete peper roomkaas)"}]
[{"$nulls":26},{"$f":"matrixen!X63","v":"WARM: mini hot-dog"}]
[{"$nulls":26},{"$f":"matrixen!X64","v":"Breydelspek met mosterdroomsaus"}]
[{"$nulls":26},{"$f":"matrixen!X65","v":"aperoglaasje scampi"}]
[{"$nulls":26},{"$f":"matrixen!X66","v":"Warme dagvis met curry"}]
[{"$nulls":26},{"$f":"matrixen!X67","v":"een gevuld toastcupje"}]
[{"$nulls":26},{"$f":"matrixen!X68","v":"oester met champagnesaus "}]
[{"$nulls":26},{"$f":"matrixen!X69","v":"garnaal in filo"}]
[{"$nulls":26},{"$f":"matrixen!X70","v":"mini croque"}]
[{"$nulls":26},{"$f":"matrixen!X71","v":"mini loempia"}]
[{"$nulls":26},{"$f":"matrixen!X72","v":"mini kippenboutje"}]
[{"$nulls":26},{"$f":"matrixen!X73","v":"Gepaneerde garnalen butterfly"}]
[{"$nulls":26},{"$f":"matrixen!X74","v":"SOEP van kreeft"}]
[{"$nulls":26},{"$f":"matrixen!X75","v":"Aspergeroomsoep met koornbloemblaadjes"}]
[{"$nulls":26},{"$f":"matrixen!X76","v":"Pompoensoep (sept. okt. nov.)"}]
[{"$nulls":26},{"$f":"matrixen!X77","v":"Kervelroomsoep met gerookte eend"}]
[{"$nulls":26},{"$f":"matrixen!X78","v":"Preiroomsoep met broccoligarnituur en gebakken spekjes"}]
[{"$nulls":26},{"$f":"matrixen!X79","v":"Soepje van boschampignons met gerookte paling"}]
[{"$nulls":26},{"$f":"matrixen!X80","v":"Gepaneerde garnalen butterfly"}]
[{"$nulls":26},{"$f":"matrixen!X81","v":"DESSERT: mini dame blanche (1 bol in wijnglas)"}]
[{"$nulls":26},{"$f":"matrixen!X82","v":"Bruine chocolademousse"}]
[{"$nulls":26},{"$f":"matrixen!X83","v":"Pasteis de nata"}]
[{"$nulls":26},{"$f":"matrixen!X84","v":"Chocoladebavarois"}]
[{"$nulls":26},{"$f":"matrixen!X85","v":"Miserable    "}]
[{"$nulls":26},{"$f":"matrixen!X86","v":"mini fruittaartje"}]
[{"$nulls":26},{"$f":"matrixen!X87","v":"glaasje fruitsla met perensorbet"}]
[{"$nulls":26},{"$f":"matrixen!X88","v":"Witte chocolademousse"}]
[{"$nulls":26},{"$f":"matrixen!X89","v":"Roomsoes met warme chocoladesaus"}]
[{"$nulls":26},{"$f":"matrixen!X90","v":"Tiramisu "}]
[{"$nulls":26},{"$f":"matrixen!X91","v":"Gebak peer-caramel"}]
[{"$nulls":26},{"$f":"matrixen!X92","v":"javanais"}]
{"$rows_empty":51}
[{"$nulls":26},{"$f":"matrixen!X143","v":0}]
[{"$nulls":26},{"$f":"matrixen!X144","v":0}]
[{"$nulls":26},{"$f":"matrixen!X145","v":0}]
[{"$nulls":26},{"$f":"matrixen!X146","v":0}]
[{"$nulls":26},{"$f":"matrixen!X147","v":0}]
[{"$nulls":26},{"$f":"matrixen!X148","v":0}]
[{"$nulls":26},{"$f":"matrixen!X149","v":0}]
[{"$nulls":26},{"$f":"matrixen!X150","v":0}]
[{"$nulls":26},{"$f":"matrixen!X151","v":0}]
[{"$nulls":26},{"$f":"matrixen!X152","v":0}]
[{"$nulls":26},{"$f":"matrixen!X153","v":0}]

{"sheet":"matrixen","index":1,"n_rows":383,"n_cols":34,"rows_kept":383,"hidden":true}
[null,"2019-12-31",{"$nulls":9},"lam, zwanen enz..  . Met foto suppl.",{"$nulls":3},{"v":15,"d":"15.00"},{"$nulls":16},"Buffetje no 1: "]
[{"$nulls":11},"Foto op de taart: suppl. € ",null,null,{"v":0.7,"d":"0.70"},"per stuk taart en € ",null,{"v":10,"d":"10.00"}," per foto",{"$nulls":13},"Mini broodjes","Chaumes"]
[{"$nulls":33},"Belegen hoevekaas (vb  Oud Brugge)"]
[{"$nulls":33},"Brie"]
[]
[]
[null,"Minimaal verbruik feest",null,null,950]
[]
[]
[]
[]
[]
[null,"Maak in dit vak uw keuze",{"$nulls":6},0]
[null,"Babyborrel",{"$nulls":6},{"v":27,"d":"€ 27.00"},null,"Maak in dit vak uw keuze","Babyborrel","Partyformule","Receptie E","Uitgebreide receptie, alle doelen",null,null,"Receptie A","Free-flow 1 maaltijd-receptieformule met buffetjes en warme hapjes","Free-flow 1 maaltijd-receptieformule met buffetjes en warme hapjes en extra gerookte zalm en krabsalade","Free-flow 2 maaltijd-receptieformule met buffetjes en warme hapjes","Free-flow 2 maaltijd-receptieformule met buffetjes en warme hapjes en extra gerookte zalm en krabsalade","Maak in dit vak uw keuze","Babyborrel","Partyformule","Receptie E","Uitgebreide receptie, alle doelen",0,0,"Receptie A","Free-flow 1 maaltijd-receptieformule met buffetjes en warme hapjes","Free-flow 1 maaltijd-receptieformule met buffetjes en warme hapjes en extra gerookte zalm en krabsalade","Free-flow 2 maaltijd-receptieformule met buffetjes en warme hapjes","Free-flow 2 maaltijd-receptieformule met buffetjes en warme hapjes en extra gerookte zalm en krabsalade"]
[null,"Partyformule",{"$nulls":6},{"v":27,"d":"€ 27.00"},null,null,"Onze meest uitgebreide ","Uitgebreide receptie ","Kleinere receptie","Onze meest uitgebreide ",null,null,"Basis receptie.","All-in maaltijd - receptieformule ","All-in maaltijd - receptieformule ","All-in maaltijd - receptieformule ","All-in maaltijd - receptieformule ",null,"dranken inbegrepen gedurende 3 uur","dranken inbegrepen gedurende 3 uur","dranken inbegrepen","dranken inbegrepen gedurende 3 uur",0,0,"dranken inbegrepen","Met deze formule hebben uw gasten ook een maaltijd genomen.","Met deze formule hebben uw gasten ook een maaltijd genomen.","Met deze formule hebben uw gasten ook een maaltijd genomen.","Met deze formule hebben uw gasten ook een maaltijd genomen."]
[null,"Receptie E",{"$nulls":6},{"v":18.1,"d":"€ 18.10"},null,null,"receptie met een overvloed aan","met 9 hapjes","met een 4 aperitiefglaasjes als","receptie met een overvloed aan",null,null,"Dranken 2 uur inbegrepen.","van maximaal 3u30 ","van maximaal 3u30 ","van maximaal 3u30 ","van maximaal 3u30 ",null,"met schuimwijn van het huis en alle frisdranken en bieren naar believen, ","met schuimwijn van het huis en alle frisdranken en bieren naar believen, ","gedurende 2 uur","met schuimwijn van het huis en alle frisdranken en bieren naar believen, ",0,0,"gedurende 2 uur","All-in maaltijd - receptieformule van maximaal 3u30 ","All-in maaltijd - receptieformule van maximaal 3u30 ","All-in maaltijd - receptieformule van maximaal 3u30 ","All-in maaltijd - receptieformule van maximaal 3u30 "]
[null,"Receptie A",{"$nulls":6},{"v":15.5,"d":"€ 15.50"},null,null,"hapjes en drank gedurende 3 uur.","en doorlopend drank.","hapje en drank gedurende 2 uur.","hapjes en drank gedurende 3 uur.",null,null,"Goed voor een maaltijd.","De gasten hebben volledig","De gasten hebben volledig","De gasten hebben volledig","De gasten hebben volledig",null,"uitgebreide fomule met hapjes in menuvorm (max 3uur)","uitgebreide fomule met hapjes in menuvorm (max 3uur)","met huis schuimwijn,","uitgebreide fomule met hapjes in menuvorm (max 3uur)",0,0,"met huis schuimwijn,","Verbruik daarbuiten wordt extra gerekend","Verbruik daarbuiten wordt extra gerekend","Verbruik daarbuiten wordt extra gerekend","Verbruik daarbuiten wordt extra gerekend"]
[null,"Uitgebreide receptie, alle doelen",{"$nulls":6},{"v":27,"d":"€ 27.00"},null,null,"Kiest u voor een BABYNOCTURNE","Kies ook 1 warm gerecht,","Kan als babyborrel, indien","Kan op veel manieren",null,null,"Kan voor andere doelen ev.","gegeten na deze formule.","gegeten na deze formule.","gegeten na deze formule.","gegeten na deze formule.",null,"“3 koude voorgerechtjes\", u kiest uit: * verse oester ","“3 koude voorgerechtjes\", u kiest uit: * verse oester ","frisdranken en","“3 koude voorgerechtjes\", u kiest uit: * verse oester ",0,0,"frisdranken en","gedurende 2 uur","gedurende 2 uur","met Schuimwijn van het huis en alle frisdranken en bieren naar believen, ","met Schuimwijn van het huis en alle frisdranken en bieren naar believen, "]
[null,"Free-flow 1 maaltijd-receptieformule met buffetjes en warme hapjes",{"$nulls":6},{"v":33,"d":"€ 33.00"},null,null,"op een vrijdag bvb van 18 tot 21u","al dan niet met friet","aangevuld met andere hapjes","uitgebreid worden.",null,null,"aangevuld worden met ","De klemtoon ligt op een","De klemtoon ligt op een","De klemtoon ligt op een","De klemtoon ligt op een",null,"* eendenmousse met rode bessen en koornbloemblaadjes","* eendenmousse met rode bessen en koornbloemblaadjes","bieren naar believen.","* eendenmousse met rode bessen en koornbloemblaadjes",0,0,"bieren naar believen.","Er wordt rondgekomen met 5 warme hapjes per persoon","Er wordt rondgekomen met 5 warme hapjes per persoon","Er wordt rondgekomen met 5 warme hapjes per persoon","Er wordt rondgekomen met 5 warme hapjes per persoon"]
[null,"Free-flow 1 maaltijd-receptieformule met buffetjes en warme hapjes en extra gerookte zalm en krabsalade",{"$nulls":6},{"v":36,"d":"€ 36.00"},null,null,"Dan krijgt u een gratis fotoshoot voor de baby!","En selecteer forfait drank!","(In totaal minstens 7 hapjes!)",{"$nulls":3},"belegde broodjes.","kaasbuffet aangevuld","kaasbuffet aangevuld","vleesbuffet aangevuld","vleesbuffet aangevuld",null,"* mousse van krab met rode bietscheutjes","* mousse van krab met rode bietscheutjes",0,"* mousse van krab met rode bietscheutjes",0,0,0,"Op de tafels:","Op de tafels:","Op de tafels:","Op de tafels:"]
[{"$nulls":11},"Of een extra korting!",null,"Of voor een maaltijd.",{"$nulls":4},"met vleesbeleg","met vleesbeleg, krabsla","met 3 soorten kaas","met 3 soorten kaas, krabsla",null,"* parmaham met meloenbolletjes","* parmaham met meloenbolletjes","Assortiment van 4  ","* parmaham met meloenbolletjes",0,0,"Ook inbegrepen:","Potjes met pandalusgarnalen en cocktailsaus","Potjes met pandalusgarnalen en cocktailsaus","Potjes met pandalusgarnalen en cocktailsaus","Potjes met pandalusgarnalen en cocktailsaus"]
[null,"Free-flow 2 maaltijd-receptieformule met buffetjes en warme hapjes",{"$nulls":6},{"v":33,"d":"€ 33.00"},{"$nulls":10},"en gerookte zalm",null,"en gerookte zalm",null,"* parmaham met espuma van mango","* parmaham met espuma van mango","aperitiefglaasjes","* parmaham met espuma van mango",0,null,"tapenades","Buffetje no 1: ","Buffetje no 1: ","Buffetje no 1: ","Buffetje no 1: "]
[null,"Free-flow 2 maaltijd-receptieformule met buffetjes en warme hapjes en extra gerookte zalm en krabsalade",{"$nulls":6},{"v":36,"d":"€ 36.00"},{"$nulls":14},"* luzerne met gerookte zalm, eitjes van vliegende vis in wasabi","* luzerne met gerookte zalm, eitjes van vliegende vis in wasabi","inbegrepen.","* luzerne met gerookte zalm, eitjes van vliegende vis in wasabi",null,null,"nootjes en chips"]
[{"$nulls":23},"* preischeuten met tijgergarnalen en mini tomaat","* preischeuten met tijgergarnalen en mini tomaat","Maak uw keuze","* preischeuten met tijgergarnalen en mini tomaat",0,null,0,"Tomatenroomsoep","Tomatenroomsoep","Tomatenroomsoep","Tomatenroomsoep"]
[null,"Schuimwijn van het huis (reeds inbegrepen)",{"$nulls":6},{"v":0,"d":"€ 0.00"},{"$nulls":14},"* ganache van foie gras met amandelbrood ","* ganache van foie gras met amandelbrood ",null,"* ganache van foie gras met amandelbrood ",0,0,0,"Mini broodjes","Mini broodjes","Mini broodjes","Mini broodjes"]
[null,"Cava",{"$nulls":6},{"v":3.25,"d":"€ 3.25"},{"$nulls":14},"U kiest één soepje uit: * Kreeftensoep* Pompoensoep (sept. okt. nov.)","U kiest één soepje uit: * Kreeftensoep* Pompoensoep (sept. okt. nov.)",0,"U kiest één soepje uit: * Kreeftensoep* Pompoensoep (sept. okt. nov.)",0,0,0,"Gekookte ham","Gekookte ham","Gekookte ham","Gekookte ham"]
[null,"Champagne",{"$nulls":6},{"v":7,"d":"€ 7.00"},{"$nulls":14},"* Preiroomsoep met broccoligarnituur en gebakken spekjes* Aspergeroomsoep met koornbloemblaadjes","* Preiroomsoep met broccoligarnituur en gebakken spekjes* Aspergeroomsoep met koornbloemblaadjes","Liever meer dan 4 hapjes? Geen probleem.","* Preiroomsoep met broccoligarnituur en gebakken spekjes* Aspergeroomsoep met koornbloemblaadjes",0,0,0,"Gerookte ham","Gerookte ham","Gerookte ham","Gerookte ham"]
[{"$nulls":23},"* Kervelroomsoep met gerookte eend* Soepje van boschampignons met gerookte paling","* Kervelroomsoep met gerookte eend* Soepje van boschampignons met gerookte paling","Het supplement bedraagt € 1,60 per hapje","* Kervelroomsoep met gerookte eend* Soepje van boschampignons met gerookte paling",0,0,null,"pastei","pastei","pastei","pastei"]
[{"$nulls":23},"“3 warme voorgerechtjes”, u kiest uit: * oester met champagnesaus","“3 warme voorgerechtjes”, u kiest uit: * oester met champagnesaus",null,"“3 warme voorgerechtjes”, u kiest uit: * oester met champagnesaus",0,0,null,"Buffetje no 2: Kaasbuffetje:","gerookte zalm ","Carré gebraad","Carré gebraad"]
[{"$nulls":23},"* Breydelspek met mosterdroomsaus * een gevuld toastcupje ","* Breydelspek met mosterdroomsaus * een gevuld toastcupje ",null,"* Breydelspek met mosterdroomsaus * een gevuld toastcupje ",{"$nulls":3},"Chaumes","krabsalade","Hespenworst","Hespenworst"]
[null,"Dessertbuffet zonder maaltijd: ",{"$nulls":6},{"v":16.5,"d":"€ 16.50"},{"$nulls":14},"* mini croque * scampi nantua ","* mini croque * scampi nantua ",null,"* mini croque * scampi nantua ",{"$nulls":3},"Blauwschimmelkaas (vb Castella)","Buffetje no 2: Kaasbuffetje:","Americain préparé","Americain préparé"]
[null,"Koffie 3 X bediend",{"$nulls":6},{"v":2.5,"d":"€ 2.50"},{"$nulls":14},"* mini loempia * Warme dagvis met curry ","* mini loempia * Warme dagvis met curry ",null,"* mini loempia * Warme dagvis met curry ",{"$nulls":3},"Munster (= pikant)","Chaumes","Buffetje no 2: Kaasbuffetje:","gerookte zalm "]
[{"$nulls":23},"* garnaal in filo * kippenboutje ","* garnaal in filo * kippenboutje ",null,"* garnaal in filo * kippenboutje ",{"$nulls":3},"Belegen hoevekaas (vb  Sparkin)","Blauwschimmelkaas (vb Castella)","Chaumes","krabsalade"]
[{"$nulls":23}," “2 dessertjes”, u kiest uit:"," “2 dessertjes”, u kiest uit:",null," “2 dessertjes”, u kiest uit:",{"$nulls":3},"Brie","Munster (= pikant)","Belegen hoevekaas (vb  Sparkin)","Buffetje no 2: Kaasbuffetje:"]
[null,"1 aperitief per persoon, vrije keuze",{"$nulls":6},{"v":6,"d":"€ 6.00"},{"$nulls":14},"* mini dame blanche (1 bol in wijnglas)","* mini dame blanche (1 bol in wijnglas)",null,"* mini dame blanche (1 bol in wijnglas)",{"$nulls":3},"Maredsous","Belegen hoevekaas (vb  Sparkin)","Brie","Chaumes"]
[null,"Pineau des charentes wit",{"$nulls":6},{"v":6,"d":"€ 6.00"},{"$nulls":14},"* Bruine chocolademousse","* Bruine chocolademousse",null,"* Bruine chocolademousse",{"$nulls":3},"Stokbrood","Brie","Stokbrood","Belegen hoevekaas (vb  Sparkin)"]
[null,"Maison (basis safari)",{"$nulls":6},{"v":6,"d":"€ 6.00"},{"$nulls":14},"* Pasteis de nata","* Pasteis de nata",null,"* Pasteis de nata",{"$nulls":3},"Boter","Maredsous","Boter","Brie"]
[null,"Kir royale",{"$nulls":6},{"v":6,"d":"€ 6.00"},{"$nulls":14},"* Chocoladebavarois","* Chocoladebavarois",null,"* Chocoladebavarois",{"$nulls":3},"Versierd met druiven ","Stokbrood","Versierd met druiven ","Stokbrood"]
[null,"Sherry dry",{"$nulls":6},{"v":6,"d":"€ 6.00"},{"$nulls":14},"* Miserable    * mini fruittaartje","* Miserable    * mini fruittaartje",null,"* Miserable    * mini fruittaartje",{"$nulls":3},"Buffetje no 3:","Boter","Buffetje no 3:","Boter"]
[null,"Porto",{"$nulls":6},{"v":6,"d":"€ 6.00"},{"$nulls":14},"* glaasje fruitsla met perensorbet","* glaasje fruitsla met perensorbet",null,"* glaasje fruitsla met perensorbet",{"$nulls":3},"Koffie","Versierd met druiven ","Koffie","Versierd met druiven "]
[null,"Martini (wit/rood)",{"$nulls":6},{"v":6,"d":"€ 6.00"},{"$nulls":14},"* Witte chocolademousse","* Witte chocolademousse",null,"* Witte chocolademousse",{"$nulls":3},"Javanais","Buffetje no 3:","Javanais","Buffetje no 3:"]
[null,"Kir",{"$nulls":6},{"v":6,"d":"€ 6.00"},{"$nulls":14},"* Roomsoes met warme chocoladesaus","* Roomsoes met warme chocoladesaus",null,"* Roomsoes met warme chocoladesaus",{"$nulls":3},"Speculoostaart","Koffie","Speculoostaart","Koffie"]
[null,"Schuimwijn",{"$nulls":6},{"v":6,"d":"€ 6.00"},{"$nulls":14},"* Tiramisu * javanais","* Tiramisu * javanais",null,"* Tiramisu * javanais",{"$nulls":3},"(naarmate de groep vergroot kan een derde soort dessert gezet worden)","Javanais","(naarmate de groep vergroot kan een derde soort dessert gezet worden)","Javanais"]
[{"$nulls":23},"* Gebak peer-caramel","* Gebak peer-caramel",null,"* Gebak peer-caramel",{"$nulls":4},"Speculoostaart",null,"Speculoostaart"]
[{"$nulls":31},"(naarmate de groep vergroot kan een derde soort dessert gezet worden)",null,"(naarmate de groep vergroot kan een derde soort dessert gezet worden)"]
[null,"Warme toostjes per stuk",{"$nulls":6},{"v":1.6,"d":"€ 1.60"},{"$nulls":14},"De 2 desserthapjes mogen ook vervangen worden door een zakje friet."]
[null,"Koude toostjes per stuk",{"$nulls":6},{"v":1.6,"d":"€ 1.60"}]
[null,"Nootjes, chips en zoutkoekjes zoveel u wenst,  per pers.",{"$nulls":6},{"v":0,"d":"€ 0.00"}]
[null,"aperitiefglaasjes per stuk",{"$nulls":6},{"v":1.6,"d":"€ 1.60"}]
[null,"Rauwe groenten (wortel, bloemkool, cocktailsaus) prijs per persoon:",{"$nulls":6},{"v":1.6,"d":"€ 1.60"},{"$nulls":14},"KOUD: crunchy sushi","KOUD: crunchy sushi"]
[null,"Oesters per stuk warm of koud",{"$nulls":6},"fini",{"$nulls":14},"luzerne met gerookte zalm, eitjes van vliegende vis in wasabi","luzerne met gerookte zalm, eitjes van vliegende vis in wasabi"]
[{"$nulls":23},"preischeuten met tijgergarnalen en mini tomaat","preischeuten met tijgergarnalen en mini tomaat"]
[null,"per uur extra drank, prijs per persoon:",{"$nulls":6},{"v":2.5,"d":"€ 2.50"},{"$nulls":14},"aperoglaasje parmaham met meloenbolletjes","aperoglaasje parmaham met meloenbolletjes"]
[{"$nulls":23},"ganache van foie gras met frambozenconfituur en amandelbrood","ganache van foie gras met frambozenconfituur en amandelbrood"]
[{"$nulls":23},"aperoglaasje parmaham met espuma van mango","aperoglaasje parmaham met espuma van mango"]
[{"$nulls":23},"verse oester","verse oester"]
[{"$nulls":23},"Taboulé met gerookte forel","Taboulé met gerookte forel"]
[{"$nulls":3},"Maak hier uw keuze",{"$nulls":19},"Haringhapje met curry","Haringhapje met curry"]
[null,"Belegd met:",null,"parmaham",null,null,"€ ",{"v":4.5,"d":"4.50"},{"$nulls":15},"Mini bagel met zalm en kruidenkaas","Mini bagel met zalm en kruidenkaas"]
[{"$nulls":3},"grijze garnalen",null,null,"€ ",{"v":4.2,"d":"4.20"},{"$nulls":15},"BORD: op tafel met rauwe groenten en cocktailsaus (wortel, bloemkool, radijs)","BORD: op tafel met rauwe groenten en cocktailsaus (wortel, bloemkool, radijs)"]
[{"$nulls":3},"gerookte zalm",null,null,"€ ",{"v":2.5,"d":"2.50"},{"$nulls":15},"Bord met olijven, kaasjes en salamietjes","Bord met olijven, kaasjes en salamietjes"]
[{"$nulls":3},"zalmsalade",null,null,"€ ",{"v":2.5,"d":"2.50"},{"$nulls":15},"Bord met 3 tapenades (tonijn / pesto spread rosso /zoete peper roomkaas)","Bord met 3 tapenades (tonijn / pesto spread rosso /zoete peper roomkaas)"]
[{"$nulls":3},"gerookte ham",null,null,"€ ",{"v":2.5,"d":"2.50"},{"$nulls":15},"WARM: mini hot-dog","WARM: mini hot-dog"]
[{"$nulls":3},"vissla",null,null,"€ ",{"v":2.5,"d":"2.50"},{"$nulls":15},"Breydelspek met mosterdroomsaus","Breydelspek met mosterdroomsaus"]
[null," ",null,"kaas",null,null,"€ ",{"v":2.5,"d":"2.50"},{"$nulls":15},"aperoglaasje scampi","aperoglaasje scampi"]
[{"$nulls":3},"gekookte ham",null,null,"€ ",{"v":2.5,"d":"2.50"},{"$nulls":15},"Warme dagvis met curry","Warme dagvis met curry"]
[{"$nulls":3},"américain préparé",null,null,"€ ",{"v":2.5,"d":"2.50"},{"$nulls":15},"een gevuld toastcupje","een gevuld toastcupje"]
[{"$nulls":3},"krabsla",null,null,"€ ",{"v":2.5,"d":"2.50"},{"$nulls":15},"oester met champagnesaus ","oester met champagnesaus "]
[{"$nulls":3},"kipsla",null,null,"€ ",{"v":2.5,"d":"2.50"},{"$nulls":15},"garnaal in filo","garnaal in filo"]
[{"$nulls":23},"mini croque","mini croque"]
[{"$nulls":23},"mini loempia","mini loempia"]
[null,null,"uitgebreide fomule met toostjes in menuvorm (max 3uur)",{"$nulls":8},"Waarde dessert (hoeveel er afgaat)",null,{"v":2,"d":"2.00"},{"$nulls":9},"mini kippenboutje","mini kippenboutje"]
[null,null,"“3 koude voorgerechtjes”",{"$nulls":20},"Gepaneerde garnalen butterfly","Gepaneerde garnalen butterfly"]
[null,null,"koud hapje met krabsla ",{"$nulls":20},"SOEP van kreeft","SOEP van kreeft"]
[null,null,"koud hapje met gerookte zalm",{"$nulls":20},"Aspergeroomsoep met koornbloemblaadjes","Aspergeroomsoep met koornbloemblaadjes"]
[null,null,"koud hapje met grijze garnalen",{"$nulls":8},"Een frikandel",null,{"v":1.5,"d":"1.50"},{"$nulls":9},"Pompoensoep (sept. okt. nov.)","Pompoensoep (sept. okt. nov.)"]
[null,null,"“soepje”",{"$nulls":8},"Een zakje friet",null,{"v":2,"d":"2.00"},{"$nulls":9},"Kervelroomsoep met gerookte eend","Kervelroomsoep met gerookte eend"]
[null,null,"1 mini soepje tomatenroom of vissoepje",{"$nulls":8},"Een BBQ worst",null,{"v":3,"d":"3.00"},{"$nulls":9},"Preiroomsoep met broccoligarnituur en gebakken spekjes","Preiroomsoep met broccoligarnituur en gebakken spekjes"]
[null,null,"“3 warme gerechtjes”",{"$nulls":8},"Een ovenkoek met reuze Angus burger",null,{"v":8,"d":"8.00"},{"$nulls":9},"Soepje van boschampignons met gerookte paling","Soepje van boschampignons met gerookte paling"]
[null,null,"kippenboutje",{"$nulls":8},"Duo van Groenlandse heilbot en scampi's met een snuifje saffraan",null,{"v":10,"d":"10.00"},{"$nulls":9},"Gepaneerde garnalen butterfly","Gepaneerde garnalen butterfly"]
[null,null,"mini loempia",{"$nulls":8},"Bladerdeeggebakje gevuld met kip",null,{"v":10,"d":"10.00"},{"$nulls":9},"DESSERT: mini dame blanche (1 bol in wijnglas)","DESSERT: mini dame blanche (1 bol in wijnglas)"]
[null,null,"mini croque monsieur",{"$nulls":8},"Victoriabaarsfilet in preiroomsaus",null,{"v":10,"d":"10.00"},{"$nulls":9},"Bruine chocolademousse","Bruine chocolademousse"]
[null,null,"“2 dessertjes”",{"$nulls":8},"Witte zalmfilet in gekruide roomsaus of in kreeftenroomsaus",null,{"v":10,"d":"10.00"},{"$nulls":9},"Pasteis de nata","Pasteis de nata"]
[null,null,"mini-brochetje met druifje, ananas en meloenbolletje",{"$nulls":8},"Gepocheerde verse roze zalm met bieslooksaus",null,{"v":10,"d":"10.00"},{"$nulls":9},"Chocoladebavarois","Chocoladebavarois"]
[null,null,"mini confituurtaartje",{"$nulls":20},"Miserable    ","Miserable    "]
[{"$nulls":23},"mini fruittaartje","mini fruittaartje"]
[null,"Maak hier uw keuze",{"$nulls":21},"glaasje fruitsla met perensorbet","glaasje fruitsla met perensorbet"]
[null,"Alles mag op 1 rekening geplaatst worden en wordt betaald door de organisator van het feest.",{"$nulls":21},"Witte chocolademousse","Witte chocolademousse"]
[null,"De gasten rekenen zelf de drankjes af die ze bestellen.",{"$nulls":21},"Roomsoes met warme chocoladesaus","Roomsoes met warme chocoladesaus"]
[{"$nulls":23},"Tiramisu ","Tiramisu "]
["Alle drank na de receptie komt op één rekening en wordt door de organisator van het feest betaald",{"$nulls":14},"één rekening",{"$nulls":7},"Gebak peer-caramel","Gebak peer-caramel"]
["Elke gast die na de receptie een drankje bestelt rekent direct af aan de bar",{"$nulls":14},"direct afrekenen",{"$nulls":7},"javanais","javanais"]
["Forfait voor drank naar believen (alle bieren en frisdranken van de drankkaart in de zaal) na een receptie pp: ",{"$nulls":13},{"v":16,"d":"16.00"},{"v":16,"d":"16.00"},"alletwee de prijzen nodig!"]
["Indien  er geen volwaardige maaltijd wordt genomen, dienen er minstens 4 belegde broodjes genomen te worden en verhoogt het drankforfait tot € 28,00 ",{"$nulls":14},{"v":28,"d":"28.00"}]
["'s middags tot 21 u - 's avonds onbeperkt. Let op! Artikel 8 van de verkoopsvoorwaarden (zie laatste bladzijde) kan hier van toepassing zijn !!!!"]
[]
["Neem contact op met de zaakvoerder op tel nr 0475/618058",{"$nulls":14},"x"]
["om hier zeker geen misverstanden over te hebben!"]
[]
[]
["Verbruik van DJ  ten laste van de klant"]
[]
["Voor onze vegetarische klanten:"]
[]
["- Voor onze vegetarische klanten bereiden wij graag een aparte schotel. "]
["Wij vragen wel met aandrang om op voorhand te melden als er vegetariërs zijn."]
["Zij eten mee aan de prijs van de rest van de groep."]
[]
[]
[]
[]
["Mensen met een speciaal dieet:"]
[]
["Wij houden rekening met speciale wensen van mensen die een dieet volgen, "]
["maar alleen indien op voorhand gemeld. "]
[]
["Halal kan ook, onder toezicht van een moslim bereid."]
[]
["ja"]
["nee"]
{"$rows_empty":101}
["Exclusiviteit voor beide zalen:",{"$nulls":4},750]
{"$rows_empty":158}
["Betaling op de dag zelf (cash of bancontact), u bekomt 2% korting op het totaal"]
["Storting op BE 48 4631 1391 2127 min. 7 dagen voor het feest, 2% korting"]
["Betaling na het feest. Gelieve 40 % voorschot te storten op BE48 4631 1391 2127. Geen korting."]

{"sheet":"Algemene verkoopsvoorwaarden","index":2,"n_rows":63,"n_cols":13,"rows_kept":63}
[null,"Algemene verkoopsvoorwaarden:"]
[null,"1) Onze facturen zijn contant te betalen bij levering van de goederen. Bijgevolg zal in geval van laattijdige betaling"]
[null,"van rechtswege en zonder voorafgaande ingebrekestelling een intrest aangerekend worden van 12% per jaar op de "]
[null,"bedragen, verschuldigd acht dagen na de vervaldag van de facturen. Tevens zal bij gebrek aan betaling na "]
[null,"aanmaning bij gewone brief, het verschuldigde bedrag van rechtswege verhoogd worden met een forfaitaire"]
[null,"vergoeding van 12 % met een minimum van € 50  voor bijkomende administratieve kosten, debiteurenbewaking "]
[null,"en commerciële stoornissen. Wij behouden ons het recht voor op elk moment de leveringen te staken. Elke "]
[null,"klacht over de kwaliteit van de geleverde goederen moet uiterlijk 24 uur na de levering worden overgemaakt. "]
[null,"Klachten in verband met facturatie kunnen slechts in aanmerking worden genomen zo zij binnen de acht "]
[null,"dagen na ontvangst van de goederen bij aangetekende brief worden meegedeeld. In geval van betwisting zijn "]
[null,"uitsluitend de rechtbanken van Kortrijk bevoegd. De leveringen  geschieden op risico van de bestemmeling. Er "]
[null,"wordt uitdrukkelijk overeengekomen dat de klant door het plaatsen van een bestelling onze algemene "]
[null,"verkoopsvoorwaarden erkent. Elke wijziging hieraan moet voorafgaandelijk in een schriftelijk akkoord worden "]
[null,"vastgelegd."]
[]
[null,"2) Annulatie dient schriftelijk en gedateerd te geschieden. "]
[null,"In geval van annulatie minder dan 60 dagen voor de activiteit blijft het voorschot eigendom van het Katelijnenhof."]
[null,"Voor annulatie minder dan 10 dagen voor de activiteit is de klant in alle gevallen verplicht 35 % van de reservatie-"]
[null,"waarde van de gehele manifestatie te vergoeden."]
[null,"Bij annulatie minder dan 5 dagen voor  de activiteit is de klant in alle gevallen verplicht de reservatie waarde van de "]
[null,"gehele manifestatie te vergoeden."]
[]
[null,"3) Iedere levering van dranken, voedingswaren of diensten in de  zalen is uitsluitend voorbehouden aan het "]
[null,"Katelijnenhof, tenzij er een andere schriftelijke overeenkomst is."]
[]
[null,"4) De klant is eraan gehouden voor iedere dansavond met groot orkest een aanvraag tot toelating in te dienen bij "]
[null,"SABAM, Rijselsestraat 51, 8500 Kortrijk, Tel : 056/210738 en alle kosten voortvloeiend uit deze aanvraag te "]
[null,"dragen.  Voor een gewone disc-jockey betalen wij jaarlijks een vaste bijdrage. Het verbruik (drank en voeding) "]
[null,"van de DJ is ten laste van de klant. Gelet op de nieuwe geluidsnormen, van kracht op 01/01/2013, moet de "]
[null,"klant de DJ of elke andere persoon of toestel dat  geluid produceert verplichten zich aan deze normen te houden. "]
[null,"De toelating voor onze zaal is – maximaal geluidsniveau > 85 dB(A) LAeq,15min en ≤ 95 dB(A) LAeq,15min. "]
[null,"Dit is ruim voldoende. Alle boetes ten gevolge een overschrijding van deze voorwaarde zijn ten laste van de "]
[null,"klant. Er wordt een professionele houding van elke DJ of geluidstechnicus verwacht."]
[]
[null,"5) Alle door de klant meegebrachte materiaal dient door de klant te worden verzekerd en direct na het beëindigen"]
[null,"van de manifestatie te worden verwijderd uit de zaal. Het Katelijnenhof behoudt het recht de leverancier te "]
[null,"aanvaarden en voorschriften te geven om de lokalen ongeschonden te behouden. Het is strikt verboden om "]
[null,"versieringen aan de muren of plafonds te bevestigen met duimspijkers of kleefband ! Bij beschadigingen van "]
[null,"een deel van de muur wordt het geheel als beschadigd beschouwd."]
[]
[null,"6) Het gebruik van de zaal is strikt beperkt tot de in deze overeenkomst vastgestelde functie. "]
[null,"Iedere wijziging in de voorheen verklaarde bestemming brengt automatisch het recht tot prijsherziening met zich mee."]
[]
[null,"7) Het gebruik van de zaal is gratis van zodra het verbruik hoger ligt dan € ",{"$nulls":7},{"$f":"matrixen!E7","v":950}]
[null,{"$f":"\"Indien het verbruik lager ligt dan wordt het factuurbedrag opgetrokken tot € \"&J44","v":"Indien het verbruik lager ligt dan wordt het factuurbedrag opgetrokken tot € 950"}]
[null,"Indien uw feest cash (max € 3000) betaald wordt op de dag zelf dan krijgt u een korting van 2 % "]
[null,"op de gehele factuur. Voor traiteurdienst gelden andere kortingsregels."]
[]
[null,"8) Op vrijdag-, zaterdag- en (in geval van een avondfeest) op zondagnacht sluit de zaal, "]
[null,"overeenkomstig het politiereglement, om 03 uur. "]
[null,"Indien de klant dit wenst kan een afwijking bekomen worden op dit reglement mits het betalen van € ",{"$nulls":10},{"$f":"J44/10","v":95}]
[null,"(btw incl.) per uur. De klant heeft tijd tot 02u30 om te beslissen of hij van deze afwijking wenst gebruik te "]
[null,"maken of niet. Indien de klant akkoord gaat deze toeslag  te betalen zal het Katelijnenhof  onmiddellijk een "]
[null,"aanvraag doen bij de lokale politie. In het andere geval worden vanaf 02u45 geen dranken meer bediend en"]
[null,"sluiten om 03u00 de deuren. Voor de andere dagen gelden andere tarieven."]
[null,"Op een zaterdag - en zondagmiddagfeest sluit de zaal om 18u30. Indien u wenst langer te blijven wordt per "]
[null,"begonnen uur eveneens een toeslag van € ",{"$nulls":4},{"$f":"M51","v":95}]
[null,"(btw incl.) aangerekend."]
[null,"9) De klant is verantwoordelijk voor de goede orde in en rond de feestzaal. Schade veroorzaakt door een der "]
[null,"aanwezigen kan verhaald worden op deze persoon maar als deze om gelijk welke reden de schade niet kan "]
[null,"vergoeden (vb: te weinig financiële middelen of de veroorzaker is onbekend) kan deze schade eveneens "]
[null,"ondeelbaar worden verhaald op de klant , zijnde de persoon die het feest heeft besteld. VB: per gebroken tulpje "]
[null,"aan de lusters van de grote zaal wordt 25 euro aangerekend."]

{"sheet":"Reservatievoorstel","index":3,"n_rows":62,"n_cols":18,"rows_kept":62,"merged":[[2,14,3,14],[2,15,3,15],[2,16,3,16],[2,17,3,17],[9,12,9,13],[12,9,12,11],[12,12,12,16],[14,9,14,17],[16,9,16,17],[23,14,23,17],[25,9,26,17],[34,0,35,8],[36,0,40,8]]}
[null,null,"Reservatievoorstel",{"$nulls":7},"Uitsplitsing per BTW tarief.",{"$nulls":4},"Totaalprijs per vol:",{"$f":"E9","v":{"v":0,"d":"0.00"}}]
["Naam Klant:",null,{"$f":"'recepties en babyborrels'!F58","v":0},{"$nulls":3},"Katelijnenhof",{"$nulls":8},{"$f":"IF(Q2>0,\"Prijs drankforfait na de maaltijd, volledig aan 21% BTW:\",\"\")","v":""},{"$f":"'recepties en babyborrels'!D33","v":{"v":0,"d":"0.00"}}]
["Adres:",null,{"$f":"'recepties en babyborrels'!F59","v":0},{"$nulls":3},"Heirweg 172",{"$nulls":5},"Menu",null,"Dep. B",{"$f":"IF(Q2>0,\"Drank- forfait:\",\"\")","v":""},"Totaal aan 21%","Dep. A"]
["Stad:",null,{"$f":"'recepties en babyborrels'!F60","v":0},{"$nulls":3},"8800 Roeselare",{"$nulls":3},"aantal","totaal:","deel 12%","deel21%"]
["Tel nr:",null,{"$f":"'recepties en babyborrels'!F61","v":0},{"$nulls":3},"info@katelijnenhof.be",null,null,"Vol",{"$f":"D9","v":0},{"$f":"Q1-Q2","v":{"v":0,"d":"0.00"}},{"$f":"ROUND(L5*0.65,2)","v":{"v":0,"d":"0.00"}},{"$f":"L5-M5","v":{"v":0,"d":"0.00"}},{"$f":"K5*M5","v":{"v":0,"d":"0.00"}},{"$f":"Q2","v":{"v":0,"d":"0.00"}},{"$f":"N5+P5","v":{"v":0,"d":"0.00"}},{"$f":"K5*Q5","v":{"v":0,"d":"0.00"}}]
[{"$f":"'recepties en babyborrels'!E65","v":"reden feest:"},{"$f":"'recepties en babyborrels'!F65","v":0},{"$nulls":4},"Gsm 0475/618058",null,null,"JR 1/2",{"$f":"D10","v":0},{"$f":"E10-P6","v":{"v":0,"d":"0.00"}},{"$f":"ROUND(L6*0.65,2)","v":{"v":0,"d":"0.00"}},{"$f":"L6-M6","v":{"v":0,"d":"0.00"}},{"$f":"K6*M6","v":{"v":0,"d":"0.00"}},{"$f":"ROUND(Q2/2,2)","v":{"v":0,"d":"0.00"}},{"$f":"N6+P6","v":{"v":0,"d":"0.00"}},{"$f":"K6*Q6","v":{"v":0,"d":"0.00"}}]
["Datum activiteit:",null,{"$f":"'recepties en babyborrels'!F48","v":"00:00:00"},null,"email klant:",{"$f":"'recepties en babyborrels'!F62","v":0},{"$nulls":3},"JR 1/3",{"$f":"D11","v":0},{"$f":"E11-P7","v":{"v":0,"d":"0.00"}},{"$f":"ROUND(L7*0.65,2)","v":{"v":0,"d":"0.00"}},{"v":0,"d":"0.00"},{"v":0,"d":"0.00"},{"$f":"ROUND(Q2/3,2)","v":{"v":0,"d":"0.00"}},{"$f":"N7+P7","v":{"v":0,"d":"0.00"}},{"v":0,"d":"0.00"}]
["Totaal aantal personen:",null,null,{"$f":"D9+D12+D11+D10","v":0},"prijs:",null,"aankomst om:",{"$f":"'recepties en babyborrels'!F55","v":0},null,"JR gratis",{"$f":"D12","v":0},{"$f":"E12","v":"0,00"},{"$f":"ROUND(L8*0.65,2)","v":0},{"v":0,"d":"0.00"},{"v":0,"d":"0.00"},null,{"$f":"N8+P8","v":0},{"v":0,"d":"0.00"}]
[null,null,"volwassenen:",{"$f":"'recepties en babyborrels'!F50","v":0},{"$f":"'recepties en babyborrels'!D7","v":{"v":0,"d":"0.00"}},null,"aan tafel om:",{"$f":"'recepties en babyborrels'!F56","v":0},{"$nulls":3},"Voorschot reeds betaald:",null,null,{"$f":"ROUND(M9/98*100,2)","v":0},{"$f":"IF(Q9>0,\"Huur zaal/exclusiviteit\",\"\")","v":""},{"$f":"I12+I13","v":{"v":0,"d":"0.00"}}]
[null,null,"JR 1/2 (6 t.e.m. 11) :",{"$f":"'recepties en babyborrels'!F51","v":0},{"$f":"'recepties en babyborrels'!J7","v":{"v":0,"d":"0.00"}},null,null,"raming totaal 1:",{"$f":"D9*E9+D10*E10+D11*E11+D12*E12","v":{"v":0,"d":"€ 0.00"}},null,null,"Gestort / betaald op:"]
[null,null,"JR 1/3 (3 t.e.m. 5) :",{"$f":"'recepties en babyborrels'!F52","v":0},{"$f":"'recepties en babyborrels'!H7","v":{"v":0,"d":"0.00"}},null,null,"ander rekenblad:",{"$f":"'recepties en babyborrels'!F63","v":{"v":0,"d":"€ 0.00"}},null,null,{"$f":"IF(O9>0,\"Voorschot uitgesplitst:\",\"\")","v":""},{"$f":"IF(O9>0,\" € \"&ROUND(O9*0.65,2) & \" x 12% => Dep. B  en € \" & ROUND(O9*0.35,2) & \" x 21% => Dep. A.\",\"\")","v":""}]
[null,null,"JR gratis (0 t.e.m. 2) :",{"$f":"'recepties en babyborrels'!F53","v":0},{"$f":"'recepties en babyborrels'!F7","v":"0,00"},null,null,"huur zaal:",{"$f":"IF(D8=0,0,IF((I10+I11)<'Algemene verkoopsvoorwaarden'!J44,('Algemene verkoopsvoorwaarden'!J44-Reservatievoorstel!I10-Reservatievoorstel!I11),0))","v":{"v":0,"d":"€ 0.00"}},{"$nulls":3},"Voorschot wordt gesplitst over:",{"$f":"IF(O9>0,ROUNDUP((O9+1)/L5,0),0)","v":0}," volwassenen"]
[{"$nulls":7},{"$f":"IF('recepties en babyborrels'!E47>0,\"U koos exclusiviteit: \",\"\")","v":""},{"$f":"'recepties en babyborrels'!E47","v":{"v":0,"d":"€ 0.00"}},"Input GKS:",null,null,{"$f":"IF(O9*0.65 >N12*M5,\"ONMOGELIJK U bekomt negatieve waarden.\",\"\")","v":""}]
[{"$nulls":7},"raming algemeen totaal:",{"$f":"I12+I11+I10+I13","v":{"v":0,"d":"€ 0.00"}},{"$f":"N12","v":0},"vol","x",{"$f":"IFERROR(ROUND(M5-O9*0.65/N12,2),\"\")","v":""},{"v":0.12,"d":"12%"},{"$f":"IFERROR(J14*M14,\"\")","v":""},"Dep. B","Verwerking voorschot"]
[{"$nulls":7},"raming te betalen indien contante betaling  (max € 3000 cash):",{"$f":"'recepties en babyborrels'!F72","v":{"v":0,"d":"€ 0.00"}},{"$f":"IFERROR( \" Er wordt € \" & ROUND(O9*0.65/N12,2) & \" minder geboekt bij \" & N12 & \" personen omdat dit reeds als voorschot werd geboekt.\",\"\")","v":""}]
[{"$nulls":8},{"$f":"IF(O9>0,\" Uw voorschot van € \" & O9 & \" wordt nog in mindering gebracht\",\"\")","v":""},{"$f":"N12","v":0},"vol","x",{"$f":"IFERROR(ROUND(Q5-O9*0.35/N12,2),\"\")","v":""},{"v":0.21,"d":"21%"},{"$f":"IFERROR(J16*M16,\"\")","v":""},"Dep. A","Verwerking voorschot"]
[{"$f":"IFERROR(E9,\"Dit voorstel is ongeldig. Het aantal hapjes klopt niet\")","v":0},{"$nulls":6},"Voorziene tafelschikking:",null,{"$f":"IFERROR( \" Er wordt € \" & ROUND(O9*0.35/N12,2) & \" minder geboekt bij \" & N12 & \" personen omdat dit reeds als voorschot werd geboekt.\",\"\")","v":""}]
[{"$nulls":8},"informele opstelling",{"$f":"K5-J14","v":0},{"$f":"K14","v":"vol"},"x",{"$f":"M5","v":{"v":0,"d":"0.00"}},{"v":0.12,"d":"12%"},{"$f":"J18*M18","v":{"v":0,"d":"0.00"}},"Dep. B"]
[{"$nulls":8},"U kunt dit wijzigen, maar neem daarvoor contact met ons op.",{"$f":"K5-J16","v":0},{"$f":"K16","v":"vol"},"x",{"$f":"Q5","v":{"v":0,"d":"0.00"}},{"v":0.21,"d":"21%"},{"v":0,"d":"0.00"},"Dep. A"]
[{"$f":"'recepties en babyborrels'!H49","v":0},{"$nulls":8},{"$f":"K6","v":0},{"$f":"J6","v":"JR 1/2"},"x",{"$f":"M6","v":{"v":0,"d":"0.00"}},{"v":0.12,"d":"12%"},{"v":0,"d":"0.00"},"Dep. B"]
[{"$f":"IF(D21<>\"\",\"u selecteerde als supplement: \",\"\")","v":""},null,null,{"$f":"'recepties en babyborrels'!H50","v":""},{"$nulls":5},{"$f":"K6","v":0},{"$f":"J6","v":"JR 1/2"},"x",{"$f":"Q6","v":{"v":0,"d":"0.00"}},{"v":0.21,"d":"21%"},{"v":0,"d":"0.00"},"Dep. A"]
[{"$f":"IF(D22<>\"\",\"u selecteerde als supplement: \",\"\")","v":""},null,null,{"$f":"'recepties en babyborrels'!L48","v":""},{"$nulls":5},{"$f":"K7","v":0},{"$f":"J7","v":"JR 1/3"},"x",{"$f":"M7","v":{"v":0,"d":"0.00"}},{"v":0.12,"d":"12%"},{"v":0,"d":"0.00"},"Dep. B"]
[{"$f":"IF(D23<>\"\",\"u selecteerde als supplement: \",\"\")","v":""},{"$nulls":8},{"$f":"K7","v":0},{"$f":"J7","v":"JR 1/3"},"x",{"$f":"Q7","v":{"v":0,"d":"0.00"}},{"v":0.21,"d":"21%"},{"v":0,"d":"0.00"},"Dep. A"]
[{"$nulls":8},{"$f":"'recepties en babyborrels'!B16","v":"De gast die een extra aperitief bestelt betaalt deze zelf"},{"$f":"IF(L24>L240,\"1\",0)","v":0},{"$f":"IF(L24>0,\"x\",\"\")","v":""},{"$f":"Q9","v":{"v":0,"d":"0.00"}},{"$f":"IF(L24>0,\"21%\",\"\")","v":""},{"$f":"IF(L24>0,\"Dep. A\",\"\")","v":""},{"$f":"P9","v":""}]
[{"$f":"'recepties en babyborrels'!H51","v":0},{"$nulls":9},"Totale boekwaarde:",{"$f":"SUM(O14:O23)+L24+O9+I11","v":{"v":0,"d":"0.00"}},{"$f":"IF(SUM(O14:O23)+L24+O9+I11 <>I14,\" Er is iets fout met de splitsingstabel\",\"\")","v":""}]
[{"$f":"IF('recepties en babyborrels'!B39=\"ja\",\"Er vallen 2 hapjes weg.\",\"\")","v":""},{"$nulls":8},{"$f":"\"De eventuele korting contant van 2 %, in het huidig voorstel is dit € \" & ROUND(I14-I15,2) & \" is nog niet in bovenstaande splitsing verwerkt.\"","v":"De eventuele korting contant van 2 %, in het huidig voorstel is dit € 0 is nog niet in bovenstaande splitsing verwerkt."}]
[{"$f":"IF('recepties en babyborrels'!B41<>\"\",\"extra inbegrepen: \"&'recepties en babyborrels'!B41,\"\")","v":""}]
[{"$f":"IF('recepties en babyborrels'!B43<>\"\", \"extra inbegrepen: \"&'recepties en babyborrels'!B43,\"\")","v":""}]
[{"$f":"IF('recepties en babyborrels'!B45<>\"\", \"extra inbegrepen: \"&'recepties en babyborrels'!B45,\"\")","v":""}]
[{"$f":"IF('recepties en babyborrels'!B47<>\"nee\", \"Klant wenst exclusiviteit op het domein en betaalt daarvoor een meerprijs van: € \" &'recepties en babyborrels'!E47,\"\")","v":""},{"$nulls":8},{"$f":"IF(J32<>\"\",\"Detail van de borrel:\",\"\")","v":"Detail van de borrel:"}]
[]
[{"$nulls":9},{"$f":"A20","v":0}]
["Betaling drank na de eerste receptie:",{"$nulls":8},{"$f":"'recepties en babyborrels'!J12","v":0},{"$nulls":3},{"$f":"IF(A20=matrixen!M14,\"gevolgd door een drankforfait voor de gehele avond\",\"\")","v":""}]
[{"$f":"'recepties en babyborrels'!B33","v":"Alle drank na de receptie komt op één rekening en wordt door de organisator van het feest betaald"},{"$nulls":8},{"$f":"'recepties en babyborrels'!J13","v":0}]
[{"$f":"'recepties en babyborrels'!J64 & \" \" &'recepties en babyborrels'!K64","v":"Wijze van betaling: Storting op BE 48 4631 1391 2127 min. 7 dagen voor het feest, 2% korting"},{"$nulls":8},{"$f":"'recepties en babyborrels'!J14","v":0}]
[{"$nulls":9},{"$f":"IF(OR($J$32=matrixen!$X$14,$J$32=matrixen!$Y$14,$J$32=matrixen!$Z$14,$J$32=matrixen!$AA$14),'recepties en babyborrels'!B25,'recepties en babyborrels'!J15)","v":0}]
[{"$f":"\"Opmerking: \" &'recepties en babyborrels'!F66","v":"Opmerking: "},{"$nulls":8},{"$f":"IF(OR($J$32=matrixen!$X$14,$J$32=matrixen!$Y$14,$J$32=matrixen!$Z$14,$J$32=matrixen!$AA$14),'recepties en babyborrels'!B26,'recepties en babyborrels'!J16)","v":0}]
[{"$nulls":9},{"$f":"IF(OR($J$32=matrixen!$X$14,$J$32=matrixen!$Y$14,$J$32=matrixen!$Z$14,$J$32=matrixen!$AA$14),'recepties en babyborrels'!B27,'recepties en babyborrels'!J17)","v":0}]
[{"$nulls":9},{"$f":"IF(OR($J$32=matrixen!$X$14,$J$32=matrixen!$Y$14,$J$32=matrixen!$Z$14,$J$32=matrixen!$AA$14),'recepties en babyborrels'!B28,'recepties en babyborrels'!J18)","v":0}]
[{"$nulls":9},{"$f":"IF(OR($J$32=matrixen!$X$14,$J$32=matrixen!$Y$14,$J$32=matrixen!$Z$14,$J$32=matrixen!$AA$14),'recepties en babyborrels'!F23,'recepties en babyborrels'!J19)","v":0}]
[{"$nulls":9},{"$f":"IF(OR($J$32=matrixen!$X$14,$J$32=matrixen!$Y$14,$J$32=matrixen!$Z$14,$J$32=matrixen!$AA$14),'recepties en babyborrels'!F24,'recepties en babyborrels'!J20)","v":0},{"$nulls":6},{"$f":"IF(OR($J$32=matrixen!$X$14,$J$32=matrixen!$Y$14,$J$32=matrixen!$Z$14,$J$32=matrixen!$AA$14),'recepties en babyborrels'!F36,'recepties en babyborrels'!J30)","v":0}]
[null,null,"Factuur: ",{"$f":"'recepties en babyborrels'!K66","v":"nee"},null,null,"Vegetariërs: ",{"$f":"'recepties en babyborrels'!G42","v":"nee"},null,{"$f":"IF(OR($J$32=matrixen!$X$14,$J$32=matrixen!$Y$14,$J$32=matrixen!$Z$14,$J$32=matrixen!$AA$14),'recepties en babyborrels'!F25,'recepties en babyborrels'!J21)","v":0},{"$nulls":6},{"$f":"IF(OR($J$32=matrixen!$X$14,$J$32=matrixen!$Y$14,$J$32=matrixen!$Z$14,$J$32=matrixen!$AA$14),'recepties en babyborrels'!F37,'recepties en babyborrels'!J31)","v":0}]
[null,null,"Feest met discobar: ",{"$f":"'recepties en babyborrels'!G44","v":"nee"},null,null,"Speciale dieten: ",{"$f":"'recepties en babyborrels'!I42","v":"nee"},null,{"$f":"IF(OR($J$32=matrixen!$X$14,$J$32=matrixen!$Y$14,$J$32=matrixen!$Z$14,$J$32=matrixen!$AA$14),'recepties en babyborrels'!F26,'recepties en babyborrels'!J22)","v":0},{"$nulls":6},{"$f":"IF(OR($J$32=matrixen!$X$14,$J$32=matrixen!$Y$14,$J$32=matrixen!$Z$14,$J$32=matrixen!$AA$14),'recepties en babyborrels'!F38,'recepties en babyborrels'!J32)","v":0}]
[null,null,{"$f":"'recepties en babyborrels'!H44","v":"Allergenen: "},{"$f":"'recepties en babyborrels'!I44","v":"nee"},null,null,"Halal bereidingen: ",{"$f":"'recepties en babyborrels'!K42","v":"nee"},null,{"$f":"IF(OR($J$32=matrixen!$X$14,$J$32=matrixen!$Y$14,$J$32=matrixen!$Z$14,$J$32=matrixen!$AA$14),'recepties en babyborrels'!F27,'recepties en babyborrels'!J23)","v":0},{"$nulls":6},{"$f":"IF(OR($J$32=matrixen!$X$14,$J$32=matrixen!$Y$14,$J$32=matrixen!$Z$14,$J$32=matrixen!$AA$14),'recepties en babyborrels'!F39,'recepties en babyborrels'!J33)","v":0}]
["Het juiste aantal EN de gewenste tafelschikking moet ons meegedeeld worden ten laatste op: ",{"$nulls":7},{"$f":"C7-9","v":-9},{"$f":"IF(OR($J$32=matrixen!$X$14,$J$32=matrixen!$Y$14,$J$32=matrixen!$Z$14,$J$32=matrixen!$AA$14),'recepties en babyborrels'!F28,'recepties en babyborrels'!J24)","v":0},{"$nulls":6},{"$f":"IF(OR($J$32=matrixen!$X$14,$J$32=matrixen!$Y$14,$J$32=matrixen!$Z$14,$J$32=matrixen!$AA$14),'recepties en babyborrels'!F40,'recepties en babyborrels'!J34)","v":0}]
["Wijzigingen na deze datum van aantal en/of tafelschikking hebben prijsherzieningen tot gevolg!",{"$nulls":8},{"$f":"IF(OR($J$32=matrixen!$X$14,$J$32=matrixen!$Y$14,$J$32=matrixen!$Z$14,$J$32=matrixen!$AA$14),'recepties en babyborrels'!F29,'recepties en babyborrels'!J25)","v":0},{"$nulls":6},{"$f":"IF(OR($J$32=matrixen!$X$14,$J$32=matrixen!$Y$14,$J$32=matrixen!$Z$14,$J$32=matrixen!$AA$14),'recepties en babyborrels'!F41,'recepties en babyborrels'!J35)","v":0}]
["Dit aantal geldt als minimum voor facturatie. Verdere verkoopsvoorwaarden op een ander werkblad. ",{"$nulls":8},{"$f":"IF(OR($J$32=matrixen!$X$14,$J$32=matrixen!$Y$14,$J$32=matrixen!$Z$14,$J$32=matrixen!$AA$14),'recepties en babyborrels'!F30,'recepties en babyborrels'!J26)","v":0},{"$nulls":6},{"$f":"IF(OR($J$32=matrixen!$X$14,$J$32=matrixen!$Y$14,$J$32=matrixen!$Z$14,$J$32=matrixen!$AA$14),\"\",'recepties en babyborrels'!J36)","v":0}]
["Vergeet ze niet te lezen.",{"$nulls":6},"Gaat u akkoord met de algemene verkoopsvoorwaarden?",{"$f":"'recepties en babyborrels'!K62","v":"ja"},{"$f":"IF(OR($J$32=matrixen!$X$14,$J$32=matrixen!$Y$14,$J$32=matrixen!$Z$14,$J$32=matrixen!$AA$14),'recepties en babyborrels'!F31,'recepties en babyborrels'!J27)","v":0},{"$nulls":6},{"$f":"IF(OR($J$32=matrixen!$X$14,$J$32=matrixen!$Y$14,$J$32=matrixen!$Z$14,$J$32=matrixen!$AA$14),'recepties en babyborrels'!F43,'recepties en babyborrels'!J37)","v":0}]
["Handtekening der beide partijen voor akkoord:",{"$nulls":8},{"$f":"IF(OR($J$32=matrixen!$X$14,$J$32=matrixen!$Y$14,$J$32=matrixen!$Z$14,$J$32=matrixen!$AA$14),'recepties en babyborrels'!F32,'recepties en babyborrels'!J28)","v":0},{"$nulls":6},{"$f":"IF(OR($J$32=matrixen!$X$14,$J$32=matrixen!$Y$14,$J$32=matrixen!$Z$14,$J$32=matrixen!$AA$14),\"\",'recepties en babyborrels'!J38)","v":0}]
[null,null,"De klant",{"$nulls":4},"Het Katelijnenhof",null,{"$f":"IF(OR($J$32=matrixen!$X$14,$J$32=matrixen!$Y$14,$J$32=matrixen!$Z$14,$J$32=matrixen!$AA$14),'recepties en babyborrels'!F33,'recepties en babyborrels'!J29)","v":0},{"$nulls":6},{"$f":"IF(OR($J$32=matrixen!$X$14,$J$32=matrixen!$Y$14,$J$32=matrixen!$Z$14,$J$32=matrixen!$AA$14),\"\",'recepties en babyborrels'!J39)","v":0}]
{"$rows_empty":11}
[{"$nulls":9},{"$f":"IF(OR($J$32=matrixen!$X$14,$J$32=matrixen!$Y$14,$J$32=matrixen!$Z$14),'recepties en babyborrels'!F47,'recepties en babyborrels'!H41)","v":0}]